bitfinex/quotes_BTCUSD_20251117
["timestamp","ask_amount","ask_price","bid_price","bid_amount"]
[1763351717643,0.01641515,95658.0,95656.0,0.09406207]
[1763351717803,0.03729,95657.0,95650.0,0.00999999]
[1763351718017,0.03729,95657.0,95623.0,0.075]
[1763351718018,0.20910332,95647.0,95623.0,0.075]
[1763351718218,0.20910332,95647.0,95592.0,0.13164539]
[1763351718219,0.04341874,95629.0,95562.0,0.16887795]
[1763351718421,0.323,95589.0,95580.0,0.0130035]
[1763351718867,0.323,95589.0,95581.0,0.02459]
[1763351719080,0.40578381,95590.0,95581.0,0.02459]
[1763351719081,0.40578381,95610.0,95588.0,0.01634]
[1763351719284,0.0130035,95589.0,95580.0,0.0130035]
[1763351719499,0.40578381,95600.0,95588.0,0.01634]
[1763351719658,0.0130035,95599.0,95588.0,0.01634]
[1763351719881,0.0130035,95599.0,95589.0,0.02459]
[1763351720091,0.0130035,95599.0,95591.0,0.1]
[1763351720299,0.0130035,95599.0,95598.0,0.01634]
[1763351721148,0.0130035,95599.0,95596.0,0.09406207]
[1763351721358,0.0130035,95599.0,95597.0,0.09406207]
[1763351721558,0.323,95607.0,95598.0,0.001]
[1763351721761,0.03145912,95606.0,95598.0,0.001]
[1763351722590,0.03145912,95606.0,95598.0,0.002]
[1763351722796,0.03145912,95606.0,95598.0,0.001]
[1763351723020,0.03145912,95606.0,95597.0,0.09406207]
[1763351723579,0.03145912,95606.0,95598.0,0.01091551]
[1763351723747,0.03145912,95606.0,95597.0,0.09406207]
[1763351725165,0.03145912,95606.0,95598.0,0.01216]
[1763351725532,0.49068,95605.0,95598.0,0.01216]
[1763351725930,0.03145912,95606.0,95599.0,0.02459]
[1763351726135,0.02828946,95635.0,95605.0,0.01634]
[1763351726335,0.40578381,95640.0,95609.0,0.01634]
[1763351726336,0.03145226,95620.0,95609.0,0.01634]
[1763351726561,0.0164224,95628.0,95609.0,0.01634]
[1763351726727,0.40578381,95620.0,95619.0,0.01634]
[1763351726928,0.323,95628.0,95610.0,0.03675]
[1763351727164,0.40578381,95620.0,95619.0,0.01634]
[1763351727428,0.43723452,95629.0,95627.0,0.01216]
[1763351727670,0.03145071,95629.0,95627.0,0.01216]
[1763351728224,0.03145071,95629.0,95619.0,4.435e-05]
[1763351728421,0.35445071,95629.0,95619.0,4.435e-05]
[1763351728910,0.93370581,95629.0,95619.0,4.435e-05]
[1763351729505,0.9022551,95629.0,95625.0,0.09406207]
[1763351729654,0.01642171,95627.0,95625.0,0.09406207]
[1763351729851,0.02459,95628.0,95625.0,0.09406207]
[1763351730069,0.0164217,95627.0,95625.0,0.09406207]
[1763351730470,0.02459,95628.0,95625.0,0.09406207]
[1763351732804,0.0410117,95628.0,95619.0,4.435e-05]
[1763351733005,0.0410117,95628.0,95624.0,0.09406207]
[1763351733300,0.0164217,95628.0,95624.0,0.09406207]
[1763351733465,0.03145071,95627.0,95624.0,0.09406207]
[1763351735281,0.03145071,95627.0,95625.0,0.01062664]
[1763351735492,0.03145071,95627.0,95626.0,0.05309]
[1763351735693,0.16768,95627.0,95626.0,0.05309]
[1763351737657,0.16768,95627.0,95626.0,0.0285]
[1763351738831,0.16768,95627.0,95626.0,0.01216]
[1763351739077,0.0164217,95628.0,95619.0,4.435e-05]
[1763351739324,0.3394217,95628.0,95619.0,4.435e-05]
[1763351741053,0.02930416,95627.0,95619.0,4.435e-05]
[1763351741253,0.00976982,95626.0,95619.0,4.435e-05]
[1763351741490,0.3394217,95628.0,95619.0,4.435e-05]
[1763351741691,0.02930947,95627.0,95619.0,4.435e-05]
[1763351741895,0.02930947,95626.0,95619.0,4.435e-05]
[1763351742102,0.02930947,95625.0,95619.0,4.435e-05]
[1763351742432,0.02250882,95627.0,95619.0,4.435e-05]
[1763351742433,0.02930947,95624.0,95619.0,4.435e-05]
[1763351742556,0.02930947,95623.0,95619.0,4.435e-05]
[1763351742759,0.02250882,95627.0,95619.0,4.435e-05]
[1763351742760,0.02930947,95622.0,95619.0,4.435e-05]
[1763351742995,0.02930947,95621.0,95619.0,4.435e-05]
[1763351743200,0.02930947,95620.0,95619.0,4.435e-05]
[1763351745482,0.51998947,95620.0,95619.0,4.435e-05]
[1763351745678,0.54249829,95620.0,95619.0,4.435e-05]
[1763351747629,0.37481829,95620.0,95619.0,4.435e-05]
[1763351747845,0.40627467,95620.0,95619.0,4.435e-05]
[1763351749095,0.323,95619.0,95600.0,0.01528643]
[1763351749273,0.02822786,95616.0,95600.0,0.01538853]
[1763351749472,0.02930947,95615.0,95600.0,0.01538853]
[1763351749661,0.02930947,95614.0,95600.0,0.01538853]
[1763351749994,0.02822786,95615.0,95600.0,0.01538853]
[1763351749995,0.02930947,95613.0,95600.0,0.01538853]
[1763351750221,0.02930947,95612.0,95601.0,0.01673272]
[1763351750365,0.02930947,95611.0,95601.0,0.01673272]
[1763351750570,0.02930947,95610.0,95601.0,0.01673272]
[1763351750772,0.02930947,95609.0,95601.0,0.01673272]
[1763351750996,0.02930947,95608.0,95601.0,0.01673272]
[1763351751326,0.02930947,95607.0,95601.0,0.01673272]
[1763351751514,0.02930947,95606.0,95601.0,0.01673272]
[1763351751689,0.02930947,95605.0,95601.0,0.01673272]
[1763351751877,0.02930947,95604.0,95601.0,0.01773272]
[1763351752082,0.02941717,95603.0,95602.0,0.01450134]
[1763351753212,0.02941717,95603.0,95602.0,0.02990134]
[1763351753983,0.02941717,95603.0,95602.0,0.03090134]
[1763351754190,0.02941717,95603.0,95602.0,0.03190134]
[1763351755208,0.02941717,95603.0,95602.0,0.002]
[1763351755564,0.19717717,95603.0,95602.0,0.002]
[1763351755779,0.21968599,95603.0,95602.0,0.002]
[1763351755951,0.45880599,95603.0,95602.0,0.002]
[1763351756150,0.47006599,95603.0,95602.0,0.001]
[1763351756360,0.47006599,95603.0,95602.0,0.002]
[1763351756763,0.47006599,95603.0,95602.0,0.001]
[1763351756979,0.323,95602.0,95600.0,0.0001021]
[1763351757178,0.05192599,95601.0,95600.0,0.0001021]
[1763351757565,0.06408599,95601.0,95600.0,0.0001021]
[1763351757802,0.08051065,95601.0,95600.0,0.0001021]
[1763351757964,0.06408599,95601.0,95600.0,0.0001021]
[1763351758385,0.06408599,95601.0,95600.0,0.0011021]
[1763351759186,0.06408599,95601.0,95600.0,0.0021021]
[1763351759600,0.06408599,95601.0,95600.0,0.0011021]
[1763351759898,0.06408599,95601.0,95600.0,0.0021021]
[1763351761060,0.0805106,95601.0,95600.0,0.0021021]
[1763351761361,0.05800178,95601.0,95600.0,0.0021021]
[1763351761660,0.05800178,95601.0,95600.0,0.0175021]
[1763351762010,0.04584178,95601.0,95600.0,0.04761431]
[1763351762743,0.04584267,95601.0,95600.0,0.04761431]
[1763351762920,0.04584267,95601.0,95600.0,0.0422621]
[1763351763953,0.01642461,95601.0,95600.0,0.0422621]
[1763351764998,0.01642461,95601.0,95600.0,0.0612621]
[1763351765212,0.01642461,95601.0,95600.0,0.0602621]
[1763351765399,0.10030461,95601.0,95600.0,0.06841431]
[1763351766673,0.01642461,95601.0,95600.0,0.06841431]
[1763351766836,0.10030461,95601.0,95600.0,0.06841431]
[1763351767020,0.10030461,95601.0,95600.0,0.06941431]
[1763351768540,0.01642461,95601.0,95600.0,0.06941431]
[1763351769948,0.40566578,95620.0,95600.0,0.06941431]
[1763351770149,0.40566578,95620.0,95619.0,0.12072207]
[1763351770386,0.40566578,95629.0,95619.0,0.12072207]
[1763351770744,0.35243229,95628.0,95624.0,0.01126]
[1763351770888,0.04585315,95627.0,95624.0,0.01126]
[1763351771087,0.02943229,95626.0,95625.0,0.02476]
[1763351771285,0.01642086,95627.0,95625.0,0.02476]
[1763351771515,0.01642086,95627.0,95626.0,0.0154]
[1763351771713,0.02259977,95638.0,95626.0,0.0154]
[1763351771911,0.02942601,95637.0,95627.0,0.02476]
[1763351772078,0.02942601,95636.0,95627.0,0.02476]
[1763351772289,0.02942601,95635.0,95634.0,0.09406207]
[1763351772489,0.02942601,95635.0,95634.0,0.10549997]
[1763351772736,0.02942601,95635.0,95634.0,0.14565997]
[1763351773326,0.00980867,95635.0,95634.0,0.14565997]
[1763351773544,0.00980867,95635.0,95634.0,0.10901776]
[1763351773909,0.00980867,95635.0,95634.0,0.0154]
[1763351774313,0.323,95643.0,95634.0,0.04016]
[1763351774650,0.00012983,95643.0,95642.0,0.02666]
[1763351774797,0.00012983,95643.0,95642.0,0.06349221]
[1763351775217,0.01654855,95643.0,95642.0,0.06349221]
[1763351775439,0.18422855,95643.0,95642.0,0.06349221]
[1763351775643,0.18422855,95643.0,95642.0,0.05142]
[1763351776570,0.18522855,95643.0,95642.0,0.05142]
[1763351776870,0.18422855,95643.0,95642.0,0.05142]
[1763351777373,0.10038855,95643.0,95642.0,0.05142]
[1763351777520,0.01654855,95643.0,95642.0,0.05142]
[1763351777726,0.01654855,95643.0,95642.0,0.06596821]
[1763351780113,0.01654855,95643.0,95642.0,0.06559001]
[1763351780398,0.00012983,95643.0,95642.0,0.06559001]
[1763351781176,0.00012983,95643.0,95642.0,0.06659001]
[1763351781378,0.00012983,95643.0,95642.0,0.06759001]
[1763351781798,0.00012983,95643.0,95642.0,0.06659001]
[1763351781984,0.00012983,95643.0,95642.0,0.06759001]
[1763351785437,0.08396983,95643.0,95642.0,0.06759001]
[1763351789692,0.40513654,95660.0,95659.0,0.09406207]
[1763351789841,0.40513654,95669.0,95659.0,0.11903828]
[1763351790052,0.40526962,95669.0,95660.0,0.02419]
[1763351790404,0.40526962,95669.0,95668.0,0.02715]
[1763351790688,0.00013308,95669.0,95668.0,0.02715]
[1763351790888,0.00013308,95669.0,95668.0,0.05134]
[1763351792453,0.00989504,95669.0,95668.0,0.05134]
[1763351792800,0.00013308,95669.0,95668.0,0.05134]
[1763351793197,0.01966249,95669.0,95668.0,0.05134]
[1763351793401,0.02942445,95669.0,95668.0,0.05134]
[1763351793809,0.04583759,95669.0,95668.0,0.05134]
[1763351794008,0.02942445,95669.0,95668.0,0.05134]
[1763351795423,0.19710445,95669.0,95668.0,0.05134]
[1763351795783,0.19710445,95669.0,95658.0,0.01158]
[1763351795979,0.83956445,95668.0,95659.0,0.09406207]
[1763351796182,0.02929137,95667.0,95659.0,0.09406207]
[1763351796434,0.02929137,95666.0,95659.0,0.09406207]
[1763351796615,0.02929137,95665.0,95659.0,0.09406207]
[1763351796810,0.02929137,95664.0,95659.0,0.09406207]
[1763351797011,0.02929137,95663.0,95659.0,0.09406207]
[1763351797194,0.01641364,95664.0,95659.0,0.09406207]
[1763351797195,0.02929137,95662.0,95659.0,0.09406207]
[1763351797398,0.02929137,95661.0,95659.0,0.09406207]
[1763351797598,0.02929137,95660.0,95659.0,0.09406207]
[1763351800122,0.02929137,95660.0,95659.0,0.09506207]
[1763351800540,0.02929137,95660.0,95659.0,0.09406207]
[1763351800735,0.02929137,95660.0,95659.0,0.09506207]
[1763351802866,0.02929137,95660.0,95659.0,0.14790528]
[1763351803070,0.02929137,95660.0,95659.0,0.14752716]
[1763351805361,0.11309137,95660.0,95659.0,0.14752716]
[1763351805610,0.19689137,95660.0,95659.0,0.14752716]
[1763351806817,0.19689137,95660.0,95659.0,0.13444395]
[1763351807810,0.02929137,95660.0,95659.0,0.13444395]
[1763351809691,0.02929137,95660.0,95659.0,0.11025395]
[1763351810007,0.02929137,95660.0,95659.0,0.001]
[1763351810212,0.02929137,95660.0,95634.0,0.01209]
[1763351810213,0.02929137,95660.0,95636.0,0.01209]
[1763351810411,0.81027308,95647.0,95637.0,0.10817828]
[1763351810630,0.05188508,95646.0,95637.0,0.10817828]
[1763351810831,0.02929137,95645.0,95637.0,0.10817828]
[1763351811024,0.02259371,95646.0,95637.0,0.10817828]
[1763351811025,0.02929137,95644.0,95637.0,0.10817828]
[1763351811236,0.02929137,95643.0,95637.0,0.10817828]
[1763351811431,0.02929137,95642.0,95638.0,0.01081783]
[1763351811720,0.02929137,95641.0,95638.0,0.01081783]
[1763351812088,0.02929137,95640.0,95638.0,0.01081783]
[1763351812425,0.02937836,95639.0,95638.0,0.01081783]
[1763351812769,0.02937836,95639.0,95627.0,0.01209]
[1763351812927,0.02937836,95638.0,95637.0,0.09406207]
[1763351813334,0.02945252,95638.0,95637.0,0.09406207]
[1763351815171,0.02945252,95638.0,95628.0,0.02292]
[1763351815482,0.4052107,95638.0,95637.0,0.09406207]
[1763351815796,0.19715437,95638.0,95637.0,0.09406207]
[1763351817522,0.11331437,95638.0,95637.0,0.09406207]
[1763351818801,0.1035143,95638.0,95637.0,0.09406207]
[1763351819458,0.08391416,95638.0,95637.0,0.10696928]
[1763351820131,0.08391416,95638.0,95637.0,0.10796928]
[1763351820296,0.08391416,95638.0,95637.0,0.09506207]
[1763351820894,0.10350462,95638.0,95637.0,0.09506207]
[1763351821114,0.08391416,95638.0,95637.0,0.09506207]
[1763351822436,0.08391416,95638.0,95637.0,0.11137207]
[1763351822638,0.08391416,95638.0,95637.0,0.13429207]
[1763351822866,0.08391416,95638.0,95637.0,0.14893028]
[1763351823274,7.416e-05,95638.0,95637.0,0.12601028]
[1763351823837,7.416e-05,95638.0,95637.0,0.14893028]
[1763351824253,0.01649007,95638.0,95637.0,0.14893028]
[1763351824475,7.416e-05,95638.0,95637.0,0.14893028]
[1763351825512,0.16775416,95638.0,95637.0,0.14893028]
[1763351829429,7.416e-05,95638.0,95637.0,0.14893028]
[1763351830211,7.416e-05,95638.0,95637.0,0.13429207]
[1763351835477,0.16775416,95638.0,95637.0,0.13429207]
[1763351836106,0.08391416,95638.0,95637.0,0.13429207]
[1763351840053,7.416e-05,95638.0,95637.0,0.13429207]
[1763351843534,7.416e-05,95638.0,95637.0,0.001]
[1763351844609,7.416e-05,95638.0,95629.0,0.01174]
[1763351844736,7.416e-05,95638.0,95636.0,0.09406207]
[1763351845295,0.01649147,95638.0,95637.0,0.03881]
[1763351845495,0.18417147,95638.0,95637.0,0.03881]
[1763351845743,0.01649147,95638.0,95637.0,0.03881]
[1763351846699,0.01649147,95638.0,95637.0,0.03981]
[1763351846920,0.01649147,95638.0,95637.0,0.13981]
[1763351847127,0.01649147,95638.0,95637.0,0.03981]
[1763351847322,0.01649147,95638.0,95637.0,0.03881]
[1763351847801,0.01649147,95638.0,95637.0,0.05309721]
[1763351848847,0.01649147,95638.0,95637.0,0.05209721]
[1763351849256,0.01649147,95638.0,95637.0,0.05309721]
[1763351849620,0.01649147,95638.0,95637.0,0.05409721]
[1763351851076,0.01649147,95638.0,95637.0,0.04081]
[1763351855570,0.18417147,95638.0,95637.0,0.04081]
[1763351855981,0.18417147,95638.0,95637.0,0.002]
[1763351856188,0.10033147,95638.0,95637.0,0.002]
[1763351856393,0.01649147,95638.0,95637.0,0.002]
[1763351859532,0.03614156,95638.0,95637.0,0.002]
[1763351859733,0.04596698,95638.0,95637.0,0.002]
[1763351860157,0.04596698,95638.0,95637.0,0.001]
[1763351860688,0.04596698,95638.0,95637.0,0.002]
[1763351861465,0.04596698,95638.0,95637.0,0.001]
[1763351862825,0.04596698,95638.0,95613.0,0.03485]
[1763351863035,0.40530964,95629.0,95620.0,0.01410021]
[1763351864679,0.40530964,95629.0,95613.0,0.03485]
[1763351864680,0.40530964,95629.0,95613.0,0.01174]
[1763351864886,0.40530964,95623.0,95607.0,0.01174]
[1763351865110,0.40530964,95616.0,95607.0,0.01174]
[1763351865484,0.16768,95615.0,95610.0,0.1]
[1763351866496,0.01642032,95614.0,95610.0,0.1]
[1763351867893,0.01642032,95614.0,95610.0,0.101]
[1763351868107,0.01642032,95614.0,95610.0,0.1]
[1763351868276,0.01642032,95614.0,95610.0,0.101]
[1763351868542,0.01642032,95614.0,95610.0,0.102]
[1763351868760,0.01642032,95614.0,95610.0,0.101]
[1763351869094,0.01642032,95614.0,95610.0,0.102]
[1763351870186,0.01642032,95614.0,95611.0,0.02195421]
[1763351871553,0.01642032,95614.0,95611.0,0.02395421]
[1763351872462,0.01642032,95614.0,95611.0,0.03581421]
[1763351873740,0.01642032,95614.0,95613.0,0.01617]
[1763351874141,0.01642032,95614.0,95613.0,0.04098]
[1763351874966,0.01642032,95614.0,95613.0,0.04198]
[1763351875111,0.01642032,95614.0,95613.0,0.002]
[1763351875511,0.18410032,95614.0,95613.0,0.002]
[1763351877203,0.16768,95614.0,95613.0,0.002]
[1763351880431,0.18409984,95614.0,95613.0,0.002]
[1763351880615,0.18409984,95614.0,95613.0,0.01817]
[1763351881214,0.18409984,95614.0,95613.0,0.024816]
[1763351881759,0.18409984,95614.0,95613.0,0.002]
[1763351881919,0.01641984,95614.0,95613.0,0.002]
[1763351883469,0.01641984,95614.0,95613.0,0.001]
[1763351883699,0.01641984,95614.0,95601.0,0.01186]
[1763351883904,0.40530964,95611.0,95601.0,0.01186]
[1763351884042,0.40530964,95611.0,95608.0,0.09406207]
[1763351884249,0.01641984,95614.0,95608.0,0.09406207]
[1763351885443,0.16768,95613.0,95608.0,0.09506207]
[1763351885857,0.16768,95613.0,95612.0,0.01617]
[1763351886058,0.16768,95613.0,95612.0,0.03096021]
[1763351886278,0.16768,95613.0,95612.0,0.04098]
[1763351887050,0.16768,95613.0,95612.0,0.01617]
[1763351887642,0.01641984,95614.0,95612.0,0.04098]
[1763351887840,0.01641984,95614.0,95613.0,0.01617]
[1763351888046,0.01641984,95614.0,95613.0,0.04098]
[1763351890254,0.01641984,95614.0,95613.0,0.04198]
[1763351892164,0.01641984,95614.0,95613.0,0.01717]
[1763351894438,0.01641984,95614.0,95613.0,0.001]
[1763351894788,0.01641984,95614.0,95613.0,0.01717]
[1763351895387,0.01641984,95614.0,95613.0,0.04198]
[1763351895567,0.01641984,95614.0,95613.0,0.047364]
[1763351895568,0.18409984,95614.0,95613.0,0.047364]
[1763351897015,0.18409984,95614.0,95613.0,0.046194]
[1763351899049,0.18409984,95614.0,95613.0,0.045814]
[1763351899050,0.01641984,95614.0,95613.0,0.045814]
[1763351899252,0.01641984,95614.0,95613.0,0.145814]
[1763351899676,0.40530964,95630.0,95613.0,0.145194]
[1763351899876,0.43675748,95640.0,95629.0,0.12112207]
[1763351900051,0.323,95639.0,95637.0,0.02706]
[1763351900272,0.02953954,95638.0,95637.0,0.01185]
[1763351900696,0.02953954,95638.0,95637.0,0.02706]
[1763351900895,7.416e-05,95638.0,95637.0,0.0507]
[1763351901093,7.416e-05,95638.0,95637.0,0.056955]
[1763351902673,7.416e-05,95638.0,95637.0,0.256955]
[1763351903713,7.416e-05,95638.0,95637.0,0.257955]
[1763351904055,7.416e-05,95638.0,95637.0,0.258955]
[1763351904459,4.16e-06,95638.0,95637.0,0.67537374]
[1763351904674,0.40523922,95670.0,95649.0,0.09406207]
[1763351904891,0.01641353,95659.0,95650.0,0.00940621]
[1763351905095,0.81047844,95660.0,95650.0,0.04489621]
[1763351905296,9.742e-05,95670.0,95658.0,0.01521]
[1763351905500,0.40523922,95668.0,95659.0,0.01521]
[1763351905699,0.57291922,95669.0,95659.0,0.01521]
[1763351905873,0.57291922,95669.0,95659.0,0.03885]
[1763351906659,0.57291922,95669.0,95667.0,0.09406207]
[1763351906858,0.16768,95669.0,95668.0,0.04825621]
[1763351907054,0.08384,95669.0,95668.0,0.04825621]
[1763351909208,0.08384,95669.0,95668.0,0.04925621]
[1763351909406,9.742e-05,95670.0,95668.0,0.04925621]
[1763351909727,9.742e-05,95670.0,95669.0,0.03885]
[1763351909926,9.742e-05,95670.0,95669.0,0.05436683]
[1763351910090,9.742e-05,95670.0,95669.0,0.03072683]
[1763351911266,9.742e-05,95670.0,95669.0,0.05436683]
[1763351912263,9.742e-05,95670.0,95669.0,0.05536683]
[1763351914587,0.0002,95680.0,95669.0,0.25536683]
[1763351914779,0.0002,95680.0,95679.0,0.02706]
[1763351914977,0.0002,95680.0,95679.0,0.0507]
[1763351915411,0.08404,95680.0,95679.0,0.1507]
[1763351915727,0.16788,95680.0,95679.0,0.1507]
[1763351915941,0.16818037,95680.0,95679.0,0.1507]
[1763351916159,0.16818037,95680.0,95679.0,0.17577]
[1763351916367,0.16818037,95680.0,95679.0,0.17677]
[1763351917219,0.00050037,95680.0,95679.0,0.17677]
[1763351917429,0.00050037,95680.0,95679.0,0.17777]
[1763351918405,0.01691102,95680.0,95679.0,0.17777]
[1763351918586,0.00050037,95680.0,95679.0,0.17777]
[1763351919948,8.1e-05,95690.0,95679.0,0.17777]
[1763351920171,8.1e-05,95690.0,95689.0,0.02706]
[1763351920357,0.0002,95700.0,95689.0,0.02706]
[1763351920569,0.4058827,95700.0,95699.0,0.02706]
[1763351920729,0.00064348,95700.0,95699.0,0.02706]
[1763351920927,0.00064348,95700.0,95699.0,0.0507]
[1763351921131,0.00064348,95700.0,95699.0,0.056955]
[1763351921560,0.01705176,95700.0,95699.0,0.056955]
[1763351921765,0.01705176,95700.0,95699.0,0.057955]
[1763351921959,0.01705176,95700.0,95699.0,0.058955]
[1763351923363,0.03651268,95700.0,95699.0,0.058955]
[1763351924607,0.03651268,95700.0,95699.0,0.02906]
[1763351924811,0.04624457,95700.0,95699.0,0.02906]
[1763351925422,0.13004457,95700.0,95699.0,0.0527]
[1763351925581,0.21384457,95700.0,95699.0,0.02906]
[1763351925780,0.21384457,95700.0,95699.0,0.05379]
[1763351926050,0.21439058,95700.0,95699.0,0.060354]
[1763351926225,0.21439293,95700.0,95699.0,0.060354]
[1763351926850,0.21439293,95700.0,95699.0,0.059354]
[1763351927015,0.21439293,95700.0,95699.0,0.058354]
[1763351927197,0.21439293,95700.0,95699.0,0.059354]
[1763351928040,0.21439293,95700.0,95699.0,0.001]
[1763351928041,0.04679293,95700.0,95699.0,0.001]
[1763351928454,0.05864293,95700.0,95699.0,0.001]
[1763351929742,0.05864293,95700.0,95684.0,0.09406207]
[1763351929990,0.00024572,95689.0,95684.0,0.09406207]
[1763351930189,0.02919516,95688.0,95685.0,0.01172121]
[1763351930397,0.02919516,95687.0,95685.0,0.01172121]
[1763351930595,0.02919516,95686.0,95685.0,0.01172121]
[1763351931782,0.02919516,95686.0,95685.0,0.01272121]
[1763351932006,0.04560474,95686.0,95685.0,0.01272121]
[1763351933649,0.04560474,95686.0,95685.0,0.02829121]
[1763351934624,0.04560474,95686.0,95685.0,0.05302121]
[1763351935217,0.04570541,95686.0,95685.0,0.05302121]
[1763351935581,0.21330541,95686.0,95685.0,0.05302121]
[1763351937121,0.21330541,95686.0,95685.0,0.02829121]
[1763351937326,0.21330541,95686.0,95685.0,0.01657]
[1763351937487,0.04570541,95686.0,95685.0,0.001]
[1763351938107,0.02929583,95686.0,95685.0,0.001]
[1763351941518,0.04570599,95686.0,95685.0,0.001]
[1763351943317,0.04570599,95686.0,95685.0,0.01657]
[1763351943550,0.04570599,95686.0,95685.0,0.001]
[1763351943736,0.04570599,95686.0,95685.0,0.0413]
[1763351943948,0.04570599,95686.0,95685.0,0.006315]
[1763351944195,0.04570599,95686.0,95685.0,0.001]
[1763351945056,0.04570599,95686.0,95685.0,0.01657]
[1763351945599,0.21330599,95686.0,95685.0,0.01657]
[1763351946261,0.21330599,95686.0,95685.0,0.001]
[1763351947732,0.04570599,95686.0,95685.0,0.001]
[1763351948609,0.04570599,95686.0,95685.0,0.0413]
[1763351948789,0.04570599,95686.0,95685.0,0.047745]
[1763351949089,0.04573936,95686.0,95685.0,0.047745]
[1763351954419,0.03600512,95686.0,95685.0,0.047745]
[1763351954621,0.04581125,95686.0,95685.0,0.047745]
[1763351955390,0.20360512,95686.0,95685.0,0.047745]
[1763351956222,0.1965319,95686.0,95685.0,0.047745]
[1763351956625,0.1965319,95686.0,95685.0,0.023015]
[1763351956864,0.1965319,95686.0,95685.0,0.001]
[1763351958722,0.0289319,95686.0,95685.0,0.001]
[1763351959436,0.00933694,95686.0,95685.0,0.001]
[1763351959772,0.02897392,95686.0,95685.0,0.001]
[1763351961305,0.00933694,95686.0,95685.0,0.001]
[1763351965536,0.17693694,95686.0,95685.0,0.001]
[1763351967893,0.00933694,95686.0,95685.0,0.001]
[1763351969813,0.00933694,95686.0,95685.0,0.03978]
[1763351970418,0.00933694,95686.0,95685.0,0.0166]
[1763351971047,0.00933694,95686.0,95685.0,0.03978]
[1763351975453,0.17693694,95686.0,95685.0,0.03978]
[1763351975933,0.09313694,95686.0,95685.0,0.03978]
[1763351977832,0.00933694,95686.0,95685.0,0.03978]
[1763351981747,0.00024572,95689.0,95685.0,0.03978]
[1763351981946,0.00024572,95689.0,95688.0,0.10966207]
[1763351982169,0.00024572,95689.0,95688.0,0.12417728]
[1763351982372,0.00024572,95689.0,95688.0,0.14735728]
[1763351983180,0.00024572,95689.0,95688.0,0.24735728]
[1763351983380,0.00024572,95689.0,95688.0,0.14735728]
[1763351984201,0.00024572,95689.0,95688.0,0.13384207]
[1763351984598,0.00024572,95689.0,95688.0,0.13284207]
[1763351985002,0.01665514,95689.0,95688.0,0.13284207]
[1763351985407,0.18425514,95689.0,95688.0,0.13284207]
[1763351985864,0.18425514,95689.0,95688.0,0.13384207]
[1763351986246,0.18425514,95689.0,95688.0,0.14835728]
[1763351988271,0.18425514,95689.0,95688.0,0.12517728]
[1763351988635,0.01665514,95689.0,95688.0,0.12517728]
[1763351989087,0.01665514,95689.0,95688.0,0.14943728]
[1763351995409,0.10045514,95689.0,95688.0,0.14943728]
[1763351995610,0.08404572,95689.0,95688.0,0.14943728]
[1763352000192,0.00024572,95689.0,95688.0,0.14943728]
[1763352000852,0.00024572,95689.0,95688.0,0.24943728]
[1763352001359,0.00024572,95689.0,95688.0,0.34943728]
[1763352001482,0.00024572,95689.0,95688.0,0.34843728]
[1763352001883,0.00024572,95689.0,95688.0,0.34943728]
[1763352002929,0.00024572,95689.0,95688.0,0.35043728]
[1763352005476,0.08404572,95689.0,95688.0,0.35043728]
[1763352007766,0.00024572,95689.0,95688.0,0.35043728]
[1763352011350,0.00024572,95689.0,95688.0,0.34943728]
[1763352011547,0.00024572,95689.0,95688.0,0.35143728]
[1763352012205,0.00050498,95700.0,95699.0,0.02791]
[1763352012438,0.0037236,95716.0,95715.0,0.02791]
[1763352012642,0.00385659,95716.0,95715.0,0.05217]
[1763352012931,0.02026246,95716.0,95715.0,0.058578]
[1763352013675,0.01997077,95716.0,95715.0,0.058578]
[1763352015584,0.08389299,95716.0,95715.0,0.158578]
[1763352016009,0.08389299,95716.0,95715.0,0.02791]
[1763352016010,0.00013299,95716.0,95715.0,0.02791]
[1763352016190,0.0015485,95719.0,95715.0,0.05102]
[1763352016393,0.00146183,95719.0,95718.0,0.01624]
[1763352016790,0.00146183,95719.0,95718.0,0.03935]
[1763352016992,0.00146183,95719.0,95718.0,0.045767]
[1763352017948,0.00087734,95719.0,95718.0,0.045767]
[1763352018144,0.00081996,95719.0,95718.0,0.045767]
[1763352018396,0.00163878,95719.0,95718.0,0.045767]
[1763352019925,0.00149354,95719.0,95718.0,0.045767]
[1763352020139,0.00149354,95719.0,95718.0,0.046767]
[1763352023553,0.00120194,95719.0,95718.0,0.046767]
[1763352024282,0.00102745,95719.0,95718.0,0.046767]
[1763352025487,0.08478745,95719.0,95718.0,0.046767]
[1763352026634,0.0002,95730.0,95720.0,0.00999999]
[1763352026788,0.0002443,95730.0,95729.0,0.12079207]
[1763352027193,0.00017522,95730.0,95729.0,0.14423207]
[1763352027450,0.00017522,95730.0,95729.0,0.27563961]
[1763352028055,0.00017522,95730.0,95729.0,0.27663961]
[1763352028260,0.00017522,95730.0,95729.0,0.31430357]
[1763352028533,5.929e-05,95730.0,95729.0,0.31430357]
[1763352028748,5.929e-05,95730.0,95729.0,0.31530357]
[1763352028974,5.929e-05,95730.0,95729.0,0.28389603]
[1763352029385,0.01628774,95734.0,95733.0,0.01506]
[1763352029594,0.0002,95740.0,95739.0,0.01506]
[1763352029999,0.0002,95740.0,95739.0,0.0385]
[1763352031331,0.0002,95740.0,95739.0,0.01506]
[1763352031928,0.0002,95740.0,95739.0,0.0385]
[1763352032542,0.01660293,95740.0,95739.0,0.0385]
[1763352032873,0.0007729,95740.0,95739.0,0.0385]
[1763352034094,0.0007729,95740.0,95729.0,0.10573207]
[1763352034371,0.40469646,95740.0,95729.0,0.11944628]
[1763352034571,0.80919292,95740.0,95729.0,0.11944628]
[1763352034782,0.323,95739.0,95729.0,0.01167]
[1763352034982,0.02935103,95738.0,95709.0,0.1486]
[1763352035182,0.80899292,95722.0,95712.0,0.0119543]
[1763352035520,0.18709335,95721.0,95712.0,0.0119543]
[1763352035735,0.34257335,95720.0,95712.0,4.43e-05]
[1763352035913,0.01957335,95719.0,95712.0,4.43e-05]
[1763352036558,0.0161148,95718.0,95712.0,4.43e-05]
[1763352036894,0.01957335,95717.0,95713.0,0.09406207]
[1763352037014,0.01957335,95717.0,95714.0,0.00941064]
[1763352037786,0.0161148,95718.0,95716.0,0.01506]
[1763352037995,0.0161148,95718.0,95717.0,0.01506]
[1763352038405,0.3861148,95718.0,95717.0,0.0385]
[1763352038820,0.37,95718.0,95717.0,0.0385]
[1763352038982,0.37,95718.0,95717.0,0.0527017]
[1763352039962,0.37,95718.0,95717.0,0.0537017]
[1763352040239,0.37,95718.0,95717.0,0.0395]
[1763352040674,0.36994262,95718.0,95717.0,0.0395]
[1763352041864,0.38634766,95718.0,95717.0,0.0395]